fUST/lending_fUST_20240121
["ID","MTS","AMOUNT","RATE_DAILY","PERIOD"]
[312307878,1705768256880,-500.0,0.00042465,31]
[312307879,1705768256890,-1560.84,0.00042465,31]
[312307880,1705768256899,-500.0,0.00042465,31]
[312307881,1705768256908,-610.35,0.00042465,31]
[312307882,1705768256917,-427.46983767,0.00042465,31]
[312307883,1705768256926,-500.0,0.00042465,31]
[312307884,1705768256935,-1771.96,0.00042465,31]
[312307885,1705768256945,-500.0,0.00042465,31]
[312307886,1705768256954,-1165.2,0.00042465,31]
[312307887,1705768256963,-2127.81,0.00042465,31]
[312307888,1705768256972,-500.0,0.00042465,31]
[312307889,1705768256982,-1094.5,0.00042465,31]
[312307890,1705768256991,-500.0,0.00042465,31]
[312307891,1705768257001,-555.86064837,0.00042465,31]
[312307892,1705768257010,-500.0,0.00042465,31]
[312307893,1705768257019,-500.0,0.00042465,31]
[312307894,1705768257028,-500.0,0.00042465,31]
[312307895,1705768257037,-7904.3,0.00042465,31]
[312307896,1705768257046,-500.0,0.00042465,31]
[312307897,1705768257055,-500.0,0.00042465,31]
[312307898,1705768257064,-543.29,0.00042465,31]
[312307899,1705768257073,-880.29,0.00042465,31]
[312307900,1705768257082,-500.0,0.00042465,31]
[312307901,1705768257091,-9860.07,0.00042465,31]
[312307902,1705768257101,-500.0,0.00042465,31]
[312307903,1705768257110,-500.0,0.00042465,31]
[312307904,1705768257119,-500.0,0.00042465,31]
[312307905,1705768257128,-500.0,0.00042465,31]
[312307906,1705768257137,-2185.48,0.00042465,31]
[312307907,1705768257146,-500.0,0.00042465,31]
[312307908,1705768257156,-500.0,0.00042465,31]
[312307909,1705768257165,-500.0,0.00042465,31]
[312307910,1705768257174,-500.0,0.00042465,31]
[312307911,1705768257184,-583.7,0.00042465,31]
[312307912,1705768257193,-500.0,0.00042465,31]
[312307913,1705768257203,-1814.69,0.00042465,31]
[312307914,1705768257212,-2196.59,0.00042465,31]
[312307915,1705768257222,-500.0,0.00042465,31]
[312307916,1705768257232,-500.0,0.00042465,31]
[312307917,1705768257241,-500.0,0.00042465,31]
[312307918,1705768257251,-445.05635135,0.00042465,31]
[312307919,1705768257260,-500.0,0.00042465,31]
[312307920,1705768257270,-480.89779467,0.00042465,31]
[312307921,1705768257279,-500.0,0.00042465,31]
[312307922,1705768257288,-1142.53,0.00042465,7]
[312307923,1705768257297,-865.85,0.00042465,31]
[312307924,1705768257307,-500.0,0.00042465,31]
[312307925,1705768257316,-500.0,0.00042465,31]
[312307926,1705768257325,-500.0,0.00042465,31]
[312307927,1705768257338,-500.0,0.00042465,31]
[312307928,1705768257347,-500.0,0.00042465,31]
[312307929,1705768257357,-1927.86,0.00042465,31]
[312307930,1705768257365,-500.0,0.00042465,31]
[312307931,1705768257374,-619.27992191,0.000425,7]
[312307932,1705768257384,-5000.0,0.00042622,4]
[312307933,1705768257393,-2000.0,0.00042712,30]
[312307934,1705768257403,-714.627315,0.00042739,7]
[312307935,1705768257412,-714.627315,0.00042739,7]
[312307936,1705768257422,-500.0,0.00042739,31]
[312307937,1705768257431,-500.0,0.00042739,31]
[312307938,1705768257441,-500.0,0.00042739,31]
[312307939,1705768257449,-717.95,0.00042739,31]
[312307940,1705768257458,-530.38,0.00042739,31]
[312307941,1705768257467,-500.0,0.00042739,31]
[312307942,1705768257477,-500.0,0.00042739,31]
[312307943,1705768257486,-500.0,0.00042739,31]
[312307944,1705768257495,-500.0,0.00042739,31]
[312307945,1705768257504,-500.0,0.00042739,31]
[312307946,1705768257513,-893.05,0.00042739,31]
[312307947,1705768257522,-500.0,0.00042739,31]
[312307948,1705768257531,-150.0,0.00042739,31]
[312307949,1705768257540,-1000.0,0.00042739,2]
[312307950,1705768257550,-889.73,0.00042739,31]
[312307951,1705768257559,-898.56,0.00042739,31]
[312307952,1705768257568,-500.0,0.00042739,31]
[312307953,1705768257577,-500.0,0.00042739,31]
[312307954,1705768257586,-941.1,0.00042739,31]
[312307955,1705768257595,-500.0,0.00042739,31]
[312307956,1705768257604,-895.69,0.00042739,31]
[312307957,1705768257613,-500.0,0.00042739,31]
[312307958,1705768257623,-825.39,0.00042739,31]
[312307959,1705768257632,-500.0,0.00042739,31]
[312307960,1705768257641,-548.56622561,0.00042739,31]
[312307961,1705768257650,-500.0,0.00042739,31]
[312307962,1705768257659,-241.09856181,0.00042739,31]
[312307963,1705768257668,-500.0,0.00042739,31]
[312307964,1705768257677,-500.0,0.00042739,31]
[312307965,1705768257687,-500.0,0.00042739,31]
[312307966,1705768257696,-608.63,0.00042739,31]
[312307967,1705768257705,-500.0,0.00042739,31]
[312307968,1705768257714,-500.0,0.00042739,31]
[312307969,1705768257723,-750.02,0.00042739,31]
[312307970,1705768257732,-1120.83,0.00042739,31]
[312307971,1705768257741,-500.0,0.00042739,31]
[312307972,1705768257750,-1517.52,0.00042739,31]
[312307973,1705768257759,-500.0,0.00042739,31]
[312307974,1705768257768,-500.0,0.00042739,31]
[312307975,1705768257777,-500.0,0.00042739,31]
[312307976,1705768257787,-500.0,0.00042739,31]
[312307977,1705768257796,-500.0,0.00042739,31]
[312307978,1705768257806,-533.5,0.00042739,31]
[312307979,1705768257814,-500.0,0.00042739,31]
[312307980,1705768257823,-864.03,0.00042739,31]
[312307981,1705768257833,-500.0,0.00042739,31]
[312307982,1705768257842,-500.0,0.00042739,31]
[312307983,1705768257851,-531.28633208,0.00042739,31]
[312307984,1705768257860,-500.0,0.00042739,31]
[312307985,1705768257870,-622.46548166,0.00042739,31]
[312307986,1705768257879,-500.0,0.00042739,31]
[312307987,1705768257888,-2134.02,0.00042739,31]
[312307988,1705768257897,-3009.65,0.00042739,31]
[312307989,1705768257907,-500.0,0.00042739,31]
[312307990,1705768257916,-521.44,0.00042739,31]
[312307991,1705768257926,-1074.76,0.00042739,31]
[312307992,1705768257935,-1071.51,0.00042739,31]
[312307993,1705768257944,-4081.11,0.00042739,31]
[312307994,1705768257953,-500.0,0.00042739,31]
[312307995,1705768257962,-500.0,0.00042739,31]
[312307996,1705768257971,-1036.63,0.00042739,31]
[312307997,1705768257980,-593.13,0.00042739,31]
[312307998,1705768257989,-1282.52,0.00042739,31]
[312307999,1705768257999,-38160.15,0.00042739,14]
[312308000,1705768258008,-502.67,0.00042739,31]
[312308001,1705768258018,-500.0,0.00042739,31]
[312308002,1705768258027,-500.0,0.00042739,2]
[312308003,1705768258035,-202.42432868,0.00042739,31]
[312308004,1705768258045,-500.0,0.00042739,31]
[312308005,1705768258054,-978.22,0.00042739,31]
[312308006,1705768258063,-2641.83,0.00042739,31]
[312308007,1705768258073,-500.0,0.00042739,31]
[312308008,1705768258083,-661.96,0.00042739,31]
[312308009,1705768258092,-2819.62,0.00042739,31]
[312308010,1705768258101,-500.0,0.00042739,31]
[312308011,1705768258110,-785.7,0.00042739,31]
[312308012,1705768258119,-671.17,0.00042739,31]
[312308013,1705768258128,-500.0,0.00042739,31]
[312308014,1705768258137,-500.0,0.00042739,31]
[312308015,1705768258146,-500.0,0.00042739,31]
[312308016,1705768258155,-500.0,0.00042739,31]
[312308017,1705768258164,-7239.54,0.00042739,31]
[312308018,1705768258173,-500.0,0.00042739,31]
[312308019,1705768258181,-3332.09,0.00042739,31]
[312308020,1705768258191,-1404.08,0.00042739,31]
[312308021,1705768258201,-500.0,0.00042739,31]
[312308022,1705768258210,-279.28342334,0.00042739,31]
[312308023,1705768258335,-1731.58657666,0.00042739,31]
[312308024,1705768258344,-500.0,0.00042739,31]
[312308025,1705768258354,-603.98,0.00042739,31]
[312308026,1705768258363,-500.0,0.00042739,31]
[312308027,1705768258372,-1881.4,0.00042739,31]
[312308028,1705768258382,-519.85,0.00042739,31]
[312308029,1705768258392,-500.0,0.00042739,20]
[312308030,1705768258402,-20675.05,0.00042739,31]
[312308031,1705768258413,-4990.42563535,0.00042739,31]
[312308032,1705768258640,-3292.2842969,0.00027387,3]
[312308033,1705768258651,-6838.3357031,0.00027387,3]
[312308034,1705768258660,-1829.11458058,0.00041,2]
[312308067,1705768931658,169.888694,0.00019178,2]
[312308068,1705768994877,530.84656699,0.00019178,2]
[312308069,1705769012873,530.84656699,0.00019178,2]
[312308071,1705769032864,530.84656699,0.00019178,2]
[312308072,1705769058556,530.84656699,0.00019178,2]
[312308075,1705769082573,206.72503804,0.00019178,2]
[312308076,1705769082608,324.12152895,0.00019178,2]
[312308077,1705769100585,530.84656699,0.00019178,2]
[312308078,1705769116569,484.07403107,0.00019178,2]
[312308135,1705769190228,-265.38873656,0.00019959,2]
[312308136,1705769190250,-47.15330481,0.0001996,2]
[312308145,1705769228251,-155.96557472,0.00019957,2]
[312308146,1705769228272,-2025.74140244,0.00019957,2]
[312308147,1705769248075,-154.78330338,0.00019955,2]
[312308148,1705769248096,-178.69540057,0.00019956,2]
[312308149,1705769248117,-154.78330338,0.00019956,3]
[312308150,1705769248138,-166.94378863,0.00019956,2]
[312308151,1705769248160,-8506.04389727,0.00019957,2]
[312308152,1705769248182,-1378.11965304,0.00019958,2]
[312308210,1705769431783,-4812.32326455,0.00019952,2]
[312308212,1705769431795,-187.67673545,0.00019953,2]
[312308269,1705769438042,-926.4687463,0.00019953,2]
[312308271,1705769438052,-323.47024933,0.00019953,2]
[312308273,1705769438061,-7957.69581218,0.00019997,2]
[312308275,1705769438071,-1589.56066404,0.00019998,2]
[312308277,1705769438080,-874.04705685,0.00019999,2]
[312308279,1705769438089,-475.38100568,0.0002,2]
[312308281,1705769438099,-678.35754423,0.0002,2]
[312308283,1705769438108,-24900.0,0.000205,2]
[312308285,1705769438117,-326.99550108,0.00021,2]
[312308287,1705769438126,-166.666666,0.00021918,2]
[312308289,1705769438135,-200.0,0.00021957,7]
[312308291,1705769438144,-21675.6082244,0.00023999,2]
[312308293,1705769438153,-280.0,0.00024153,7]
[312308295,1705769438162,-4012.5594856,0.00024999,2]
[312308297,1705769438171,-1045.90652664,0.00025,2]
[312308299,1705769438180,-170.145576,0.00025781,2]
[312308301,1705769438189,-154.78330338,0.00026567,4]
[312308303,1705769438199,-391.0,0.00026568,15]
[312308305,1705769438208,-2062.0796706,0.00027384,2]
[312308307,1705769438217,-241.71048008,0.00027385,2]
[312308309,1705769438226,-272.59340521,0.00027385,2]
[312308311,1705769438236,-494.08849875,0.00027385,2]
[312308313,1705769438245,-10460.8480202,0.00027385,2]
[312308315,1705769438254,-506.98936233,0.00027385,2]
[312308317,1705769438263,-717.36067047,0.00027385,2]
[312308319,1705769438272,-155.13921677,0.00027385,2]
[312308321,1705769438281,-368.6450022,0.00027386,2]
[312308323,1705769438290,-428.76124721,0.00027386,2]
[312308325,1705769438299,-166.23479053,0.00027386,2]
[312308327,1705769438308,-213.72364692,0.00027386,2]
[312308329,1705769438317,-201.11814848,0.00027386,2]
[312308331,1705769438326,-228.86938157,0.00027386,2]
[312308333,1705769438336,-282.3714786,0.00027386,2]
[312308335,1705769438345,-433.08970762,0.00027386,2]
[312308337,1705769438354,-155.96557472,0.00028766,2]
[312308339,1705769438363,-183.105003,0.00028767,2]
[312308341,1705769438372,-231.0,0.00029225,15]
[312308343,1705769438381,-173.0,0.0003,2]
[312308345,1705769438390,-498.11936971,0.00030303,5]
[312308347,1705769438399,-14150.19138157,0.00030893,4]
[312308349,1705769438408,-8442.18,0.00030904,3]
[312308351,1705769438417,-23604.15823093,0.00030914,6]
[312308353,1705769438426,-12392.47288047,0.00030914,4]
[312308355,1705769438436,-2113.60579164,0.00030914,4]
[312308357,1705769438444,-7299.24682329,0.00030914,6]
[312308359,1705769438453,-533.37510912,0.00030999,30]
[312308361,1705769438463,-156.55679897,0.00030999,4]
[312308363,1705769438472,-238.14143998,0.00031,4]
[312308365,1705769438481,-312.5392663,0.0003126,4]
[312308367,1705769438490,-154.86062544,0.00031898,4]
[312308369,1705769438499,-264.89235388,0.00031898,4]
[312308371,1705769438509,-201.73483455,0.00031898,4]
[312308373,1705769438517,-156.33187013,0.00031898,4]
[312308375,1705769438526,-178.54245641,0.00031898,4]
[312308377,1705769438536,-354.89034101,0.00031899,2]
[312308379,1705769438545,-343.94258939,0.00031899,2]
[312308381,1705769438556,-495.9750217,0.00031899,2]
[312308383,1705769438565,-376.06949964,0.00031899,2]
[312308385,1705769438574,-500.0,0.00031899,2]
[312308387,1705769438582,-500.0,0.00031899,2]
[312308389,1705769438591,-500.0,0.00031899,2]
[312308391,1705769438600,-500.0,0.00031899,2]
[312308393,1705769438610,-500.0,0.00031899,2]
[312308395,1705769438619,-500.0,0.00031899,2]
[312308397,1705769438628,-521.22792516,0.00031899,2]
[312308399,1705769438638,-500.0,0.00031899,2]
[312308401,1705769438647,-500.0,0.00031899,2]
[312308403,1705769438656,-387.31667829,0.00031899,2]
[312308405,1705769438665,-500.0,0.00031899,2]
[312308407,1705769438674,-500.0,0.00031899,2]
[312308409,1705769438684,-500.0,0.00031899,2]
[312308411,1705769438693,-500.0,0.00031899,2]
[312308413,1705769438702,-500.0,0.00031899,2]
[312308415,1705769438711,-500.0,0.00031899,2]
[312308417,1705769438720,-500.0,0.00031899,2]
[312308419,1705769438729,-500.0,0.00031899,2]
[312308421,1705769438739,-500.0,0.00031899,2]
[312308423,1705769438748,-500.0,0.00031899,2]
[312308425,1705769438758,-186.39723834,0.00031899,2]
[312308427,1705769438767,-276000.0,0.000319,2]
[312308429,1705769438778,-525.33504418,0.00031999,7]
[312308431,1705769438788,-464.59120656,0.00031999,4]
[312308433,1705769438797,-154.78330338,0.00032,4]
[312308435,1705769438806,-187209.03351613,0.00032,4]
[312308659,1705769441071,-4366.45512181,0.00019996,2]
[312308665,1705769441122,-11543.46133481,0.00019996,2]
[312308667,1705769441131,-62992.8452986,0.00032,4]
[312308669,1705769441142,-2089.78166174,0.00032,4]
[312308672,1705769441153,-7454.17345008,0.00032,4]
[312308942,1705769446675,-2010.25049261,0.0003199,3]
[312308943,1705769446730,-5024.89950739,0.0003199,3]
[312308944,1705769446741,-23.26725858,0.00032,4]
[312316362,1705770359218,-200.0,0.00023074,7]
[312316363,1705770369823,200.0,0.00023037,7]
[312316368,1705770498584,381.265251,0.00019724,2]
[312316369,1705770559197,-200.0,0.00025341,7]
[312316370,1705770565599,530.84656699,0.00019724,2]
[312316372,1705770585566,530.84656699,0.00019724,2]
[312316374,1705770603571,530.84656699,0.00019724,2]
[312316378,1705770625569,530.84656699,0.00019724,2]
[312316415,1705770632013,-903.32634326,0.00020348,2]
[312316417,1705770632023,-678.35754423,0.00020348,2]
[312316419,1705770632032,-154.78330338,0.00020349,2]
[312316421,1705770632041,-155.96557472,0.00020349,2]
[312316423,1705770632051,-154.78330338,0.0002035,2]
[312316425,1705770632059,-806.78148708,0.00020351,2]
[312316431,1705770632106,-1162.32804307,0.00020351,2]
[312316433,1705770632117,-64.73855503,0.00020351,2]
[312316434,1705770632127,-154.78330338,0.00020351,4]
[312316436,1705770632136,-265.38873656,0.00020351,2]
[312316437,1705770632147,-154.78330338,0.00020351,2]
[312316439,1705770632158,-154.78330338,0.00020352,2]
[312316441,1705770632168,-154.78330338,0.00020352,2]
[312316443,1705770632177,-323.01933147,0.00020352,2]
[312316445,1705770632186,-169.888694,0.00020362,2]
[312316446,1705770632196,-470.52459336,0.0002042,2]
[312316448,1705770632206,-24900.0,0.00020422,2]
[312316450,1705770632215,-163.5644823,0.00020841,2]
[312316452,1705770632226,-1497.88502726,0.00020978,2]
[312316454,1705770632236,-1703.5470231,0.00020988,2]
[312316456,1705770632246,-7541.12743492,0.00021,2]
[312316458,1705770632255,-166.666666,0.00021918,2]
[312316459,1705770632264,-166.666666,0.00022431,2]
[312316461,1705770632274,-2102.56602861,0.00022721,2]
[312316463,1705770632283,-154.86062544,0.00022722,2]
[312316465,1705770632292,-163.56448229,0.00022793,2]
[312316466,1705770632302,-166.666666,0.00022944,2]
[312316468,1705770632310,-166.666666,0.00023456,2]
[312316469,1705770632319,-200.64311703,0.000239,2]
[312316470,1705770632328,-200.64311702,0.000239,2]
[312316471,1705770632337,-166.666666,0.00023969,2]
[312316472,1705770632346,-166.666666,0.00024482,2]
[312316473,1705770632355,-163.56448229,0.00024745,2]
[312316474,1705770632365,-1045.90652664,0.00025,2]
[312316475,1705770632374,-80.0,0.00025341,7]
[312316476,1705770632384,-533.37510912,0.00025918,5]
[312316477,1705770632393,-163.56448229,0.00026697,2]
[312316478,1705770632402,-498.11936971,0.00027356,5]
[312316479,1705770632411,-1029.93915553,0.00027356,2]
[312316480,1705770632421,-320.0,0.00027875,15]
[312316481,1705770632430,-4042.41322367,0.00027932,5]
[312316482,1705770632440,-163.56448229,0.00028649,2]
[312316483,1705770632449,-472.84579194,0.00028698,2]
[312316484,1705770632459,-5048.37,0.00028719,3]
[312316485,1705770632468,-945.4471813,0.00028729,3]
[312316520,1705770638195,-10531.78529971,0.00020347,2]
[312316522,1705770638205,-5112.6028187,0.00028729,3]
[312316524,1705770638214,-7269.66,0.00028739,3]
[312316526,1705770638223,-10765.07065491,0.00028749,2]
[312316528,1705770638233,-243.81344,0.00028767,2]
[312316530,1705770638243,-161.085393,0.00028767,2]
[312316532,1705770638252,-167.452556,0.00028767,2]
[312316534,1705770638261,-15210.0058104,0.00028785,2]
[312316537,1705770638270,-1990.08489948,0.00028786,2]
[312316538,1705770638279,-4206.98,0.00028786,3]
[312316539,1705770638289,-2439.23698396,0.00028787,2]
[312316540,1705770638298,-158.00349204,0.00028794,2]
[312316541,1705770638307,-328.29572382,0.00028794,2]
[312316543,1705770638316,-200.0,0.00028794,2]
[312316545,1705770638326,-1765.96726807,0.00028794,2]
[312316546,1705770638335,-162.61777834,0.00028794,2]
[312316549,1705770638345,-12423.32320464,0.00028794,2]
[312316550,1705770638354,-154.86062544,0.00028795,2]
[312316553,1705770638363,-245.92930057,0.00028795,2]
[312316555,1705770638373,-159.0,0.00028796,2]
[312316557,1705770638382,-365.20661368,0.00028796,2]
[312316559,1705770638391,-2914.4489067,0.00028796,2]
[312316560,1705770638400,-199.67500353,0.00028796,5]
[312316562,1705770638409,-530.17958291,0.00028796,2]
[312316564,1705770638419,-1783.51500395,0.00028796,2]
[312316567,1705770638428,-154.92248927,0.00028796,2]
[312316569,1705770638437,-260.35659413,0.00028796,2]
[312316571,1705770638447,-154.86062544,0.00028796,2]
[312316573,1705770638456,-267.47874117,0.00028796,2]
[312316575,1705770638465,-274.15864809,0.00028796,2]
[312316577,1705770638474,-1601.85871119,0.00028796,2]
[312316579,1705770638484,-19279.0691777,0.00028796,2]
[312316580,1705770638493,-184.17443076,0.00028796,2]
[312316583,1705770638502,-154.9690062,0.00028796,2]
[312316585,1705770638511,-521.36513523,0.00028797,2]
[312316586,1705770638520,-5854.46371953,0.00028797,2]
[312316589,1705770638530,-155.68473451,0.00028798,2]
[312316590,1705770638539,-1611.96814653,0.00028798,2]
[312316592,1705770638548,-525.33504418,0.00028798,7]
[312316594,1705770638557,-156.33187013,0.00028798,2]
[312316597,1705770638567,-178.54245641,0.00028798,2]
[312316599,1705770638576,-201.73483455,0.00028798,2]
[312316601,1705770638585,-266.10227329,0.00028798,2]
[312316603,1705770638594,-257.22757821,0.00028798,2]
[312316604,1705770638603,-324.06499561,0.00028798,2]
[312316607,1705770638612,-524.19897805,0.00028798,2]
[312316609,1705770638622,-434.47564518,0.00028798,2]
[312316611,1705770638631,-156.03572133,0.00028798,2]
[312316612,1705770638640,-252.96015669,0.00028798,2]
[312316614,1705770638649,-481.32737387,0.00028798,2]
[312316616,1705770638659,-154.92248927,0.00028798,2]
[312316619,1705770638668,-30585.2599731,0.00028798,2]
[312316620,1705770638677,-155.59805412,0.00028798,2]
[312316622,1705770638687,-160.46088693,0.00028798,2]
[312316625,1705770638696,-154.92248927,0.00028798,2]
[312316626,1705770638705,-156.55679897,0.00028798,2]
[312316629,1705770638715,-1570.89243892,0.00028798,2]
[312316631,1705770638724,-7086.50783297,0.00028798,2]
[312316632,1705770638733,-18183.9234867,0.00028798,2]
[312316635,1705770638742,-4012.5594856,0.00028799,2]
[312316637,1705770638751,-500.0,0.00028799,2]
[312316639,1705770638760,-500.0,0.00028799,2]
[312316640,1705770638769,-500.0,0.00028799,2]
[312316643,1705770638780,-500.0,0.00028799,2]
[312316644,1705770638790,-500.0,0.00028799,2]
[312316646,1705770638800,-359.58742775,0.00028799,2]
[312316649,1705770638810,-555.58896115,0.00028799,2]
[312316651,1705770638819,-500.0,0.00028799,2]
[312316652,1705770638830,-500.0,0.00028799,2]
[312316654,1705770638838,-187.88517878,0.00028799,2]
[312316655,1705770638847,-487.12006945,0.00028799,2]
[312316657,1705770638856,-500.0,0.00028799,2]
[312316659,1705770638866,-500.0,0.00028799,2]
[312316661,1705770638874,-500.0,0.00028799,2]
[312316663,1705770638883,-500.0,0.00028799,2]
[312316665,1705770638892,-500.0,0.00028799,2]
[312316667,1705770638901,-500.0,0.00028799,2]
[312316669,1705770638911,-500.0,0.00028799,2]
[312316671,1705770638920,-500.0,0.00028799,2]
[312316673,1705770638929,-500.0,0.00028799,2]
[312316675,1705770638938,-500.0,0.00028799,2]
[312316677,1705770638947,-500.0,0.00028799,2]
[312316679,1705770638956,-467.3166783,0.00028799,2]
[312316681,1705770638965,-500.0,0.00028799,2]
[312316683,1705770638975,-500.0,0.00028799,2]
[312316685,1705770638984,-500.0,0.00028799,2]
[312316687,1705770638993,-500.0,0.00028799,2]
[312316689,1705770639002,-500.0,0.00028799,2]
[312316691,1705770639011,-500.0,0.00028799,2]
[312316693,1705770639020,-284.91170063,0.00028799,2]
[312316695,1705770639029,-500.0,0.00028799,2]
[312316697,1705770639037,-500.0,0.00028799,2]
[312316699,1705770639047,-500.0,0.00028799,2]
[312316701,1705770639056,-500.0,0.00028799,2]
[312316703,1705770639066,-499.99999999,0.00028799,2]
[312316705,1705770639076,-188.8,0.00028799,2]
[312316707,1705770639085,-467.80017364,0.00028799,2]
[312316709,1705770639094,-454.27799856,0.00028799,2]
[312316711,1705770639102,-500.0,0.00028799,2]
[312316713,1705770639112,-500.0,0.00028799,2]
[312316715,1705770639121,-500.0,0.00028799,2]
[312316717,1705770639130,-500.00000001,0.00028799,2]
[312316719,1705770639138,-500.0,0.00028799,2]
[312316721,1705770639147,-500.0,0.00028799,2]
[312316723,1705770639158,-184.91170063,0.00028799,2]
[312316725,1705770639169,-500.0,0.00028799,2]
[312316727,1705770639178,-500.0,0.00028799,2]
[312316729,1705770639187,-500.0,0.00028799,2]
[312316731,1705770639196,-500.0,0.00028799,2]
[312316733,1705770639206,-405.49484349,0.00028799,2]
[312316735,1705770639216,-500.0,0.00028799,2]
[312316737,1705770639226,-500.0,0.00028799,2]
[312316739,1705770639237,-500.0,0.00028799,2]
[312316754,1705770639368,-500.0,0.00028799,2]
[312316756,1705770639378,-420.0,0.00028799,2]
[312316758,1705770639387,-500.0,0.00028799,2]
[312316760,1705770639397,-500.0,0.00028799,2]
[312316762,1705770639406,-500.0,0.00028799,2]
[312316765,1705770639416,-500.0,0.00028799,2]
[312316766,1705770639426,-500.0,0.00028799,2]
[312316768,1705770639435,-375.77035757,0.00028799,2]
[312316770,1705770639444,-500.00000001,0.00028799,2]
[312316772,1705770639453,-500.0,0.00028799,2]
[312316774,1705770639463,-500.0,0.00028799,2]
[312316776,1705770639471,-500.0,0.00028799,2]
[312316778,1705770639481,-186717.24571409,0.000288,2]
[312316780,1705770639490,-832.72568573,0.00029,2]
[312316782,1705770639498,-2036.9268077,0.00029,2]
[312316785,1705770639507,-1879.95128807,0.00029,2]
[312316787,1705770639517,-156.98401213,0.00029,10]
[312316789,1705770639526,-472.84579192,0.00029272,2]
[312316791,1705770639535,-381.265251,0.00029586,2]
[312316793,1705770639544,-243.81344,0.00029648,2]
[312316795,1705770639553,-188.8,0.00029789,2]
[312316797,1705770639562,-88635.07449953,0.0002979,7]
[312316799,1705770639575,-125438.14364793,0.0002979,7]
[312316801,1705770639584,-472.84579192,0.00029847,2]
[312316803,1705770639593,-206.98036634,0.000299,2]
[312316805,1705770639603,-14621.81765674,0.0003,2]
[312316807,1705770639612,-6195.3131571,0.0003,2]
[312316809,1705770639621,-464.45635989,0.0003,2]
[312316811,1705770639630,-657.10397362,0.0003,3]
[312316813,1705770639639,-212.0,0.0003,2]
[312316815,1705770639648,-500.0,0.00030136,2]
[312316817,1705770639657,-153.0,0.00030137,2]
[312316819,1705770639666,-170.8109915,0.00030137,2]
[312316821,1705770639675,-153.2749664,0.00030137,2]
[312316823,1705770639684,-153.0,0.00030137,2]
[312316825,1705770639693,-156.5731179,0.00030137,2]
[312316827,1705770639702,-153.0,0.00030137,2]
[312316829,1705770639711,-418.0246281,0.00030137,2]
[312316831,1705770639720,-308.5597583,0.00030137,2]
[312316833,1705770639729,-500.0,0.00030273,2]
[312316835,1705770639738,-161.085393,0.00030308,2]
[312316837,1705770639748,-12249.29617136,0.000304,5]
[312316839,1705770639757,-500.0,0.0003041,2]
[312316841,1705770639766,-472.84579192,0.00030421,2]
[312316843,1705770639775,-153.52997654,0.00030499,2]
[312316845,1705770639785,-243.27736396,0.000305,2]
[312316847,1705770639794,-243.81344,0.00030528,2]
[312316849,1705770639804,-500.0,0.00030547,2]
[312316851,1705770639812,-500.0,0.00030684,2]
[312316853,1705770639822,-232.46,0.0003069,30]
[312316854,1705770639831,-500.0,0.00030821,2]
[312316856,1705770639840,-240.0,0.00030884,30]
[312316858,1705770639849,-150.5,0.00030894,30]
[312316860,1705770639858,-150.5,0.00030904,30]
[312316862,1705770639867,-188.8,0.00030913,2]
[312316863,1705770639876,-387.90821266,0.00030913,4]
[312316864,1705770639885,-373.87787944,0.00030913,4]
[312316865,1705770639894,-532.6783998,0.00030913,4]
[312316866,1705770639903,-500.0,0.00030913,4]
[312316867,1705770639912,-500.0,0.00030913,4]
[312316868,1705770639922,-500.0,0.00030913,4]
[312316869,1705770639931,-282.07199539,0.00030913,4]
[312316870,1705770639939,-17221.37086442,0.00030914,6]
[312316871,1705770639948,-50000.0,0.00030914,6]